[Event "*** Titled Tuesday Blitz"]
[Site "Chess.com"]
[Date "2021.03.09"]
[Round "1"]
[White "gatocorbis"]
[Black "zeitnot2006"]
[Result "0-1"]
[WhiteElo "2097"]
[BlackElo "2505"]
[TimeControl "180+1"]
[EndTime "10:07:32 PST"]
[Termination "zeitnot2006 won on time"]

1. e4 {[%clk 0:02:59.4]} 1... c6 {[%clk 0:02:56.4]} 2. d4 {[%clk 0:02:57.4]}
2... d5 {[%clk 0:02:57.3]} 3. exd5 {[%clk 0:02:56.6]} 3... cxd5 {[%clk
0:02:58.2]} 4. Bd3 {[%clk 0:02:55.8]} 4... Nc6 {[%clk 0:02:58.4]} 5. c3 {[%clk
0:02:55.9]} 5... g6 {[%clk 0:02:56.7]} 6. h3 {[%clk 0:02:55.8]} 6... Bg7 {[%clk
0:02:57.1]} 7. Nf3 {[%clk 0:02:55.5]} 7... Nf6 {[%clk 0:02:57.9]} 8. O-O {[%clk
0:02:54.9]} 8... O-O {[%clk 0:02:58.8]} 9. Be3 {[%clk 0:02:53.3]} 9... Bf5
{[%clk 0:02:56.5]} 10. Bxf5 {[%clk 0:02:50.2]} 10... gxf5 {[%clk 0:02:57.4]} 11.
Nbd2 {[%clk 0:02:48.4]} 11... Ne4 {[%clk 0:02:56.9]} 12. Nxe4 {[%clk 0:02:43.9]}
12... fxe4 {[%clk 0:02:55.7]} 13. Nd2 {[%clk 0:02:37.8]} 13... f5 {[%clk
0:02:54.7]} 14. Bf4 {[%clk 0:02:32.2]} 14... e6 {[%clk 0:02:25.6]} 15. Nb3
{[%clk 0:02:29]} 15... b6 {[%clk 0:02:24.2]} 16. Qd2 {[%clk 0:02:26.9]} 16...
Kh8 {[%clk 0:02:15.7]} 17. a4 {[%clk 0:02:22.2]} 17... Na5 {[%clk 0:02:12.6]}
18. Nxa5 {[%clk 0:02:20.4]} 18... bxa5 {[%clk 0:02:13.5]} 19. Bg5 {[%clk
0:02:01.4]} 19... Qe8 {[%clk 0:02:08.5]} 20. Bh6 {[%clk 0:01:48.1]} 20... Rg8
{[%clk 0:02:04.8]} 21. Bxg7+ {[%clk 0:01:47]} 21... Rxg7 {[%clk 0:02:05.7]} 22.
Qf4 {[%clk 0:01:46.5]} 22... Qg6 {[%clk 0:02:03.1]} 23. g3 {[%clk 0:01:45.9]}
23... Qh5 {[%clk 0:01:56.6]} 24. Kh2 {[%clk 0:01:36.1]} 24... Rf8 {[%clk
0:01:43.4]} 25. b4 {[%clk 0:01:27.5]} 25... Rf6 {[%clk 0:01:29.9]} 26. bxa5
{[%clk 0:01:24.8]} 26... Rg4 {[%clk 0:01:11.3]} 27. Qb8+ {[%clk 0:01:15.8]}
27... Kg7 {[%clk 0:01:10.7]} 28. Rab1 {[%clk 0:01:09.2]} 28... f4 {[%clk
0:00:26.7]} 29. Rb7+ {[%clk 0:01:00.2]} 29... Kh6 {[%clk 0:00:26.1]} 30. Qc7
{[%clk 0:00:31.7]} 30... Rgg6 {[%clk 0:00:04.1]} 31. Qxh7+ {[%clk 0:00:27]}
31... Kg5 {[%clk 0:00:04.4]} 32. h4+ {[%clk 0:00:14.2]} 32... Kg4 {[%clk
0:00:04.4]} 33. Qxh5+ {[%clk 0:00:10.2]} 33... Kxh5 {[%clk 0:00:05.3]} 34. Rxa7
{[%clk 0:00:08.5]} 34... fxg3+ {[%clk 0:00:05.3]} 35. Kg2 {[%clk 0:00:08.4]}
35... gxf2+ {[%clk 0:00:04.4]} 36. Kh3 {[%clk 0:00:06.2]} 36... Rf3+ {[%clk
0:00:04.5]} 37. Kh2 {[%clk 0:00:04.3]} 37... Rf4 {[%clk 0:00:04.6]} 38. Rh7+
{[%clk 0:00:02.6]} 38... Kg4 {[%clk 0:00:05.2]} 39. h5 {[%clk 0:00:02.4]} 39...
Rg5 {[%clk 0:00:05.8]} 0-1

[Event "*** Titled Tuesday Blitz"]
[Site "Chess.com"]
[Date "2021.03.09"]
[Round "1"]
[White "politeplayer"]
[Black "swisspower96"]
[Result "0-1"]
[WhiteElo "2293"]
[BlackElo "2599"]
[TimeControl "180+1"]
[EndTime "10:07:33 PST"]
[Termination "swisspower96 won on time"]

1. e4 {[%clk 0:02:59.2]} 1... c5 {[%clk 0:02:59.4]} 2. c3 {[%clk 0:02:51.4]}
2... Nf6 {[%clk 0:02:57.1]} 3. e5 {[%clk 0:02:51.3]} 3... Nd5 {[%clk 0:02:56.4]}
4. d4 {[%clk 0:02:51.2]} 4... cxd4 {[%clk 0:02:48.4]} 5. Nf3 {[%clk 0:02:50.8]}
5... Nc6 {[%clk 0:02:45.9]} 6. Bc4 {[%clk 0:02:49.8]} 6... Nb6 {[%clk 0:02:45]}
7. Bb3 {[%clk 0:02:50.4]} 7... d5 {[%clk 0:02:36.8]} 8. exd6 {[%clk 0:02:47.3]}
8... Qxd6 {[%clk 0:02:35.9]} 9. O-O {[%clk 0:02:43.5]} 9... Be6 {[%clk
0:02:34.4]} 10. Na3 {[%clk 0:02:39.5]} 10... dxc3 {[%clk 0:01:48]} 11. Qe2
{[%clk 0:02:24.2]} 11... Bxb3 {[%clk 0:01:42.1]} 12. Nb5 {[%clk 0:02:17.6]}
12... Qb8 {[%clk 0:01:32.3]} 13. axb3 {[%clk 0:02:13.8]} 13... e6 {[%clk
0:01:30.1]} 14. bxc3 {[%clk 0:01:53.2]} 14... Be7 {[%clk 0:01:29.2]} 15. Be3
{[%clk 0:01:45]} 15... Nd5 {[%clk 0:01:24.2]} 16. c4 {[%clk 0:01:12.3]} 16...
Nxe3 {[%clk 0:01:23.4]} 17. Qxe3 {[%clk 0:01:11.4]} 17... O-O {[%clk 0:01:23]}
18. Rfd1 {[%clk 0:01:09.1]} 18... a6 {[%clk 0:01:22.8]} 19. Nbd4 {[%clk
0:01:05.8]} 19... Nxd4 {[%clk 0:01:22.8]} 20. Nxd4 {[%clk 0:00:55.5]} 20... Bf6
{[%clk 0:01:22.5]} 21. Ra2 {[%clk 0:00:40.4]} 21... Qc7 {[%clk 0:01:21.6]} 22.
Rad2 {[%clk 0:00:39.4]} 22... Rad8 {[%clk 0:01:21.2]} 23. Nf3 {[%clk 0:00:35.4]}
23... g6 {[%clk 0:01:16.5]} 24. g3 {[%clk 0:00:34.3]} 24... Kg7 {[%clk
0:01:16.2]} 25. h4 {[%clk 0:00:33]} 25... h6 {[%clk 0:01:14.5]} 26. Kg2 {[%clk
0:00:32.7]} 26... Rxd2 {[%clk 0:01:06.8]} 27. Rxd2 {[%clk 0:00:32.2]} 27... Rd8
{[%clk 0:01:07.4]} 28. Rxd8 {[%clk 0:00:31.1]} 28... Qxd8 {[%clk 0:01:08.3]} 29.
Ne5 {[%clk 0:00:31.3]} 29... Qc7 {[%clk 0:01:08]} 30. Ng4 {[%clk 0:00:28.6]}
30... g5 {[%clk 0:00:54.1]} 31. Nxf6 {[%clk 0:00:14.7]} 31... Kxf6 {[%clk
0:00:54.5]} 32. hxg5+ {[%clk 0:00:14.7]} 32... hxg5 {[%clk 0:00:55.4]} 33. Qf3+
{[%clk 0:00:13.8]} 33... Kg6 {[%clk 0:00:55.5]} 34. Qe4+ {[%clk 0:00:13.1]}
34... Kg7 {[%clk 0:00:55.6]} 35. Qd4+ {[%clk 0:00:12.3]} 35... f6 {[%clk
0:00:55.9]} 36. Qe3 {[%clk 0:00:09.5]} 36... Qc6+ {[%clk 0:00:54.3]} 37. Kg1
{[%clk 0:00:07.8]} 37... e5 {[%clk 0:00:54.6]} 38. Qd3 {[%clk 0:00:06.6]} 38...
e4 {[%clk 0:00:53.7]} 39. Qe3 {[%clk 0:00:06.1]} 39... Kg6 {[%clk 0:00:53.6]}
40. Kg2 {[%clk 0:00:05.8]} 40... Qe6 {[%clk 0:00:53.1]} 41. Qd4 {[%clk 0:00:05]}
41... Qc6 {[%clk 0:00:52.7]} 42. Kg1 {[%clk 0:00:03.1]} 42... Kf5 {[%clk
0:00:47.3]} 43. Qd8 {[%clk 0:00:02.7]} 43... Kg4 {[%clk 0:00:44.1]} 44. Qh8
{[%clk 0:00:01.5]} 44... e3 {[%clk 0:00:28.1]} 45. Kh2 {[%clk 0:00:01.7]} 45...
exf2 {[%clk 0:00:24.2]} 0-1

[Event "*** Titled Tuesday Blitz"]
[Site "Chess.com"]
[Date "2021.03.09"]
[Round "1"]
[White "Make_it_shine060"]
[Black "LawrenceTrent"]
[Result "0-1"]
[WhiteElo "2250"]
[BlackElo "2559"]
[TimeControl "180+1"]
[EndTime "10:07:35 PST"]
[Termination "LawrenceTrent won by checkmate"]

1. d4 {[%clk 0:03:00.9]} 1... d5 {[%clk 0:02:55]} 2. c4 {[%clk 0:03:00.3]} 2...
e5 {[%clk 0:02:50.5]} 3. dxe5 {[%clk 0:02:58.5]} 3... d4 {[%clk 0:02:50.7]} 4.
Nf3 {[%clk 0:02:58.1]} 4... Nc6 {[%clk 0:02:49.6]} 5. a3 {[%clk 0:02:57.5]} 5...
Nge7 {[%clk 0:02:48.1]} 6. Nbd2 {[%clk 0:02:52.7]} 6... Ng6 {[%clk 0:02:47.8]}
7. Nb3 {[%clk 0:02:52.2]} 7... Ngxe5 {[%clk 0:02:48]} 8. Nxe5 {[%clk 0:02:45.8]}
8... Nxe5 {[%clk 0:02:46.8]} 9. Qxd4 {[%clk 0:02:32.6]} 9... Qxd4 {[%clk
0:02:46.3]} 10. Nxd4 {[%clk 0:02:33.5]} 10... Nxc4 {[%clk 0:02:47.2]} 11. e4
{[%clk 0:02:29]} 11... Nd6 {[%clk 0:02:42.4]} 12. e5 {[%clk 0:02:28]} 12... Nf5
{[%clk 0:02:42.6]} 13. Bb5+ {[%clk 0:02:15.4]} 13... c6 {[%clk 0:02:30.8]} 14.
Nxf5 {[%clk 0:02:06.5]} 14... Bxf5 {[%clk 0:02:30]} 15. Bc4 {[%clk 0:02:06.5]}
15... Be6 {[%clk 0:02:25.9]} 16. Bd3 {[%clk 0:02:03.1]} 16... O-O-O {[%clk
0:02:25.6]} 17. Be2 {[%clk 0:02:00.5]} 17... Be7 {[%clk 0:02:21.6]} 18. O-O
{[%clk 0:01:59.5]} 18... Rd5 {[%clk 0:02:20.4]} 19. f4 {[%clk 0:01:54.6]} 19...
g6 {[%clk 0:02:17.5]} 20. Be3 {[%clk 0:01:53.7]} 20... b6 {[%clk 0:02:15.6]} 21.
b4 {[%clk 0:01:52.8]} 21... Rhd8 {[%clk 0:02:14.2]} 22. Rac1 {[%clk 0:01:51.8]}
22... Kb7 {[%clk 0:02:12.2]} 23. Bf3 {[%clk 0:01:51]} 23... h5 {[%clk
0:02:12.3]} 24. Bxd5 {[%clk 0:01:49.7]} 24... Bxd5 {[%clk 0:02:11.3]} 25. f5
{[%clk 0:01:47.7]} 25... a5 {[%clk 0:02:07.2]} 26. bxa5 {[%clk 0:01:42.5]} 26...
bxa5 {[%clk 0:02:07.3]} 27. Rb1+ {[%clk 0:01:40.8]} 27... Kc8 {[%clk 0:02:06.1]}
28. fxg6 {[%clk 0:01:31.5]} 28... fxg6 {[%clk 0:02:06.2]} 29. Bb6 {[%clk
0:01:30.8]} 29... Re8 {[%clk 0:02:04.4]} 30. Bxa5 {[%clk 0:01:29.7]} 30... Bc5+
{[%clk 0:02:04.7]} 31. Kh1 {[%clk 0:01:28.9]} 31... Rxe5 {[%clk 0:02:05.6]} 32.
Rb2 {[%clk 0:01:08.1]} 32... Bxa3 {[%clk 0:02:03.4]} 33. Rd2 {[%clk 0:01:05.7]}
33... h4 {[%clk 0:01:59.4]} 34. Bc3 {[%clk 0:01:04.9]} 34... Re4 {[%clk
0:01:57.4]} 35. h3 {[%clk 0:01:02.4]} 35... Re3 {[%clk 0:01:57.1]} 36. Bd4
{[%clk 0:01:00.7]} 36... Rxh3+ {[%clk 0:01:56.8]} 37. Kg1 {[%clk 0:01:00.7]}
37... Rg3 {[%clk 0:01:57.3]} 38. Re2 {[%clk 0:00:51.9]} 38... h3 {[%clk
0:01:55.5]} 39. Kh2 {[%clk 0:00:41.9]} 39... Rxg2+ {[%clk 0:01:53]} 40. Rxg2
{[%clk 0:00:40.7]} 40... hxg2 {[%clk 0:01:53.9]} 41. Rg1 {[%clk 0:00:39.3]}
41... Bd6+ {[%clk 0:01:53.1]} 42. Kh3 {[%clk 0:00:39.1]} 42... Kd7 {[%clk
0:01:53.6]} 43. Re1 {[%clk 0:00:35.5]} 43... c5 {[%clk 0:01:53.2]} 44. Bg1
{[%clk 0:00:31.4]} 44... c4 {[%clk 0:01:51.7]} 45. Rd1 {[%clk 0:00:29.2]} 45...
Kc6 {[%clk 0:01:52]} 46. Rb1 {[%clk 0:00:27]} 46... Be4 {[%clk 0:01:49.9]} 47.
Rb6+ {[%clk 0:00:25.5]} 47... Kd7 {[%clk 0:01:30.6]} 48. Bd4 {[%clk 0:00:17.9]}
48... Bc7 {[%clk 0:01:26.3]} 49. Rxg6 {[%clk 0:00:15.4]} 49... Bxg6 {[%clk
0:01:25.3]} 50. Kxg2 {[%clk 0:00:16.3]} 50... Kc6 {[%clk 0:01:24.7]} 51. Kf2
{[%clk 0:00:15.9]} 51... Kd5 {[%clk 0:01:25]} 52. Bc3 {[%clk 0:00:15.1]} 52...
Bb6+ {[%clk 0:01:25.5]} 53. Ke2 {[%clk 0:00:14.8]} 53... Bd4 {[%clk 0:01:26.4]}
54. Bd2 {[%clk 0:00:14.5]} 54... c3 {[%clk 0:01:26.4]} 55. Bxc3 {[%clk
0:00:14.8]} 55... Bxc3 {[%clk 0:01:25.8]} 56. Kf3 {[%clk 0:00:15.7]} 56... Bd4
{[%clk 0:01:26]} 57. Kg4 {[%clk 0:00:16.1]} 57... Be4 {[%clk 0:01:25.9]} 58. Kg3
{[%clk 0:00:17]} 58... Be3 {[%clk 0:01:25.8]} 59. Kh4 {[%clk 0:00:17.1]} 59...
Ke5 {[%clk 0:01:25.8]} 60. Kh3 {[%clk 0:00:17.4]} 60... Kf4 {[%clk 0:01:24.7]}
61. Kh4 {[%clk 0:00:17.2]} 61... Bf3 {[%clk 0:01:23.3]} 62. Kh3 {[%clk
0:00:16.9]} 62... Bc5 {[%clk 0:01:22.5]} 63. Kh4 {[%clk 0:00:16.6]} 63... Be7+
{[%clk 0:01:22.5]} 64. Kh3 {[%clk 0:00:15.2]} 64... Bf6 {[%clk 0:01:21.5]} 65.
Kh2 {[%clk 0:00:15.4]} 65... Kg4 {[%clk 0:01:21.1]} 66. Kg1 {[%clk 0:00:15.4]}
66... Kg3 {[%clk 0:01:20]} 67. Kf1 {[%clk 0:00:15.4]} 67... Bc3 {[%clk
0:01:20.6]} 68. Kg1 {[%clk 0:00:15.1]} 68... Be2 {[%clk 0:01:20.8]} 69. Kh1
{[%clk 0:00:14.9]} 69... Ba5 {[%clk 0:01:20.3]} 70. Kg1 {[%clk 0:00:14.7]} 70...
Bb6+ {[%clk 0:01:21]} 71. Kh1 {[%clk 0:00:14.9]} 71... Bf3# {[%clk 0:01:21.9]}
0-1

[Event "*** Titled Tuesday Blitz"]
[Site "Chess.com"]
[Date "2021.03.09"]
[Round "1"]
[White "BilodeauA"]
[Black "SharapovEvgeny"]
[Result "1-0"]
[WhiteElo "2902"]
[BlackElo "2458"]
[TimeControl "180+1"]
[EndTime "10:07:36 PST"]
[Termination "BilodeauA won by resignation"]

1. d4 {[%clk 0:03:00.9]} 1... d5 {[%clk 0:02:57.1]} 2. Nc3 {[%clk 0:03:00.8]}
2... c6 {[%clk 0:02:55.9]} 3. Bf4 {[%clk 0:03:00.3]} 3... Qb6 {[%clk 0:02:55]}
4. Rb1 {[%clk 0:02:53.4]} 4... Nf6 {[%clk 0:02:54.2]} 5. e3 {[%clk 0:02:53.5]}
5... g6 {[%clk 0:02:53.8]} 6. Nf3 {[%clk 0:02:43.4]} 6... Bg4 {[%clk 0:02:52.1]}
7. Be2 {[%clk 0:02:42.5]} 7... Bg7 {[%clk 0:02:51.1]} 8. O-O {[%clk 0:02:41.2]}
8... O-O {[%clk 0:02:50]} 9. Na4 {[%clk 0:02:26.1]} 9... Qa5 {[%clk 0:02:39.7]}
10. Nc5 {[%clk 0:02:25.7]} 10... b6 {[%clk 0:02:32.9]} 11. Nb3 {[%clk
0:01:48.9]} 11... Qxa2 {[%clk 0:02:28.1]} 12. Bxb8 {[%clk 0:01:36.3]} 12...
Raxb8 {[%clk 0:02:23.8]} 13. Ne5 {[%clk 0:01:36.7]} 13... Bxe2 {[%clk
0:02:21.1]} 14. Qxe2 {[%clk 0:01:37.6]} 14... a5 {[%clk 0:02:12]} 15. Nxc6
{[%clk 0:01:34.2]} 15... Rb7 {[%clk 0:02:11.5]} 16. Ne5 {[%clk 0:01:19.2]} 16...
Qa4 {[%clk 0:02:06.7]} 17. Ra1 {[%clk 0:01:11.9]} 17... Qb4 {[%clk 0:02:05.8]}
18. Nd3 {[%clk 0:01:08]} 18... Qd6 {[%clk 0:02:04.9]} 19. Nd2 {[%clk 0:01:06.2]}
19... Rc8 {[%clk 0:02:02.6]} 20. c3 {[%clk 0:01:06.7]} 20... Rbc7 {[%clk
0:01:58.9]} 21. f4 {[%clk 0:01:06.1]} 21... Ne4 {[%clk 0:01:52.9]} 22. Nxe4
{[%clk 0:01:04.4]} 22... dxe4 {[%clk 0:01:52.1]} 23. Nf2 {[%clk 0:01:05.1]}
23... f5 {[%clk 0:01:50.7]} 24. g4 {[%clk 0:01:05.3]} 24... e6 {[%clk
0:01:49.8]} 25. Kh1 {[%clk 0:01:03.9]} 25... Qd5 {[%clk 0:01:48.1]} 26. gxf5
{[%clk 0:01:03.1]} 26... exf5 {[%clk 0:01:47.7]} 27. Rg1 {[%clk 0:01:02.6]}
27... Qc4 {[%clk 0:01:45.9]} 28. Qd1 {[%clk 0:01:01]} 28... Ra8 {[%clk 0:01:37]}
29. h4 {[%clk 0:00:51.5]} 29... Kf7 {[%clk 0:01:32.9]} 30. h5 {[%clk 0:00:50.1]}
30... Bf6 {[%clk 0:01:30.4]} 31. Nh3 {[%clk 0:00:50]} 31... Rg8 {[%clk 0:01:27]}
32. Rg2 {[%clk 0:00:43.3]} 32... Kf8 {[%clk 0:01:17.9]} 33. Qc2 {[%clk
0:00:37.9]} 33... Rcg7 {[%clk 0:01:14.2]} 34. h6 {[%clk 0:00:37.2]} 34... Rc7
{[%clk 0:01:11.3]} 35. Qa4 {[%clk 0:00:35]} 35... Qxa4 {[%clk 0:01:09.7]} 36.
Rxa4 {[%clk 0:00:35.9]} 36... Ke7 {[%clk 0:01:08.5]} 37. c4 {[%clk 0:00:32.7]}
37... Rgc8 {[%clk 0:01:05.3]} 38. b3 {[%clk 0:00:33.3]} 38... Rb7 {[%clk
0:01:00.2]} 39. Kh2 {[%clk 0:00:32.5]} 39... b5 {[%clk 0:00:56.1]} 40. Rxa5
{[%clk 0:00:32.7]} 40... bxc4 {[%clk 0:00:55.4]} 41. bxc4 {[%clk 0:00:33.3]}
41... Rxc4 {[%clk 0:00:54.5]} 42. Ng5 {[%clk 0:00:32.2]} 42... Bxg5 {[%clk
0:00:53.2]} 43. fxg5 {[%clk 0:00:33.1]} 43... Rc3 {[%clk 0:00:50.5]} 44. Re2
{[%clk 0:00:33.2]} 44... Rcb3 {[%clk 0:00:43.3]} 45. Kg3 {[%clk 0:00:32.7]}
45... R3b5 {[%clk 0:00:41.9]} 46. Rxb5 {[%clk 0:00:31.2]} 46... Rxb5 {[%clk
0:00:40.4]} 47. Ra2 {[%clk 0:00:32.1]} 47... Rb3 {[%clk 0:00:34.5]} 48. Kf4
{[%clk 0:00:31]} 48... Rb1 {[%clk 0:00:33.3]} 49. Ke5 {[%clk 0:00:28.4]} 49...
Re1 {[%clk 0:00:30.3]} 50. Ra7+ {[%clk 0:00:28]} 50... Kd8 {[%clk 0:00:29.5]}
51. Rxh7 {[%clk 0:00:27.5]} 51... Rxe3 {[%clk 0:00:27.7]} 52. Rg7 {[%clk
0:00:27.2]} 52... Rh3 {[%clk 0:00:25.4]} 53. h7 {[%clk 0:00:27.3]} 53... e3
{[%clk 0:00:25]} 54. Rg8+ {[%clk 0:00:27.2]} 54... Ke7 {[%clk 0:00:24.4]} 55.
h8=Q {[%clk 0:00:27.9]} 55... Rxh8 {[%clk 0:00:23.2]} 56. Rxh8 {[%clk
0:00:28.8]} 56... e2 {[%clk 0:00:22.5]} 57. Rh7+ {[%clk 0:00:29.4]} 57... Kf8
{[%clk 0:00:21.7]} 58. Rh1 {[%clk 0:00:30.3]} 1-0

[Event "*** Titled Tuesday Blitz"]
[Site "Chess.com"]
[Date "2021.03.09"]
[Round "1"]
[White "Gusarov91"]
[Black "GMJustin"]
[Result "0-1"]
[WhiteElo "2543"]
[BlackElo "2267"]
[TimeControl "180+1"]
[EndTime "10:07:36 PST"]
[Termination "GMJustin won by checkmate"]

1. d4 {[%clk 0:02:52]} 1... Nf6 {[%clk 0:02:58.5]} 2. Nf3 {[%clk 0:02:51.7]}
2... b6 {[%clk 0:02:52.9]} 3. c4 {[%clk 0:02:49.5]} 3... Bb7 {[%clk 0:02:50.1]}
4. Nbd2 {[%clk 0:02:50.4]} 4... g6 {[%clk 0:02:42.6]} 5. g3 {[%clk 0:02:48.7]}
5... Bg7 {[%clk 0:02:39.2]} 6. Bg2 {[%clk 0:02:44.4]} 6... O-O {[%clk
0:02:38.1]} 7. O-O {[%clk 0:02:39.7]} 7... e6 {[%clk 0:02:26.2]} 8. b3 {[%clk
0:02:39.5]} 8... d5 {[%clk 0:02:19.3]} 9. Bb2 {[%clk 0:02:36.2]} 9... Nbd7
{[%clk 0:02:18.4]} 10. Rc1 {[%clk 0:02:35.9]} 10... c5 {[%clk 0:02:10.4]} 11.
Qc2 {[%clk 0:02:32.3]} 11... Rc8 {[%clk 0:02:06.4]} 12. Qb1 {[%clk 0:02:32]}
12... Ne4 {[%clk 0:01:29.1]} 13. Rfd1 {[%clk 0:02:29.7]} 13... Nxd2 {[%clk
0:01:21.5]} 14. Rxd2 {[%clk 0:02:26.6]} 14... dxc4 {[%clk 0:01:16.6]} 15. dxc5
{[%clk 0:02:11.2]} 15... Bxb2 {[%clk 0:00:52.1]} 16. Qxb2 {[%clk 0:02:07.4]}
16... Rxc5 {[%clk 0:00:51.8]} 17. b4 {[%clk 0:01:56.1]} 17... Rd5 {[%clk
0:00:43.3]} 18. Rxc4 {[%clk 0:01:54.1]} 18... Rxd2 {[%clk 0:00:40.1]} 19. Qxd2
{[%clk 0:01:53.6]} 19... Bd5 {[%clk 0:00:38.9]} 20. Rd4 {[%clk 0:01:47.8]} 20...
Qe7 {[%clk 0:00:18.4]} 21. Ne5 {[%clk 0:01:28.4]} 21... Nxe5 {[%clk 0:00:16]}
22. Bxd5 {[%clk 0:01:21.3]} 22... exd5 {[%clk 0:00:16]} 23. Rxd5 {[%clk
0:01:21.9]} 23... Nc4 {[%clk 0:00:16.3]} 24. Qd3 {[%clk 0:01:20.4]} 24... Qxb4
{[%clk 0:00:15.2]} 25. Rd4 {[%clk 0:01:19.5]} 25... b5 {[%clk 0:00:15]} 26. Kg2
{[%clk 0:01:16.4]} 26... Re8 {[%clk 0:00:14.6]} 27. e3 {[%clk 0:01:16.3]} 27...
Qc5 {[%clk 0:00:14]} 28. h4 {[%clk 0:01:15.2]} 28... Ne5 {[%clk 0:00:13.6]} 29.
Qb3 {[%clk 0:01:12.4]} 29... Qc6+ {[%clk 0:00:13.3]} 30. e4 {[%clk 0:01:12.2]}
30... Nc4 {[%clk 0:00:12.9]} 31. Qd3 {[%clk 0:01:07.9]} 31... a6 {[%clk
0:00:11.6]} 32. f3 {[%clk 0:01:08.2]} 32... Qc5 {[%clk 0:00:11.3]} 33. Kh3
{[%clk 0:01:03.9]} 33... Ne5 {[%clk 0:00:11.1]} 34. Qd1 {[%clk 0:00:58.1]} 34...
Nxf3 {[%clk 0:00:10.5]} 35. Rd8 {[%clk 0:00:56.7]} 35... Rxd8 {[%clk 0:00:08.7]}
36. Qxd8+ {[%clk 0:00:57.6]} 36... Kg7 {[%clk 0:00:08.9]} 37. Qd3 {[%clk
0:00:53.1]} 37... Ne5 {[%clk 0:00:08.2]} 38. Qd2 {[%clk 0:00:49.5]} 38... b4
{[%clk 0:00:08.2]} 39. Qb2 {[%clk 0:00:49.3]} 39... Qc3 {[%clk 0:00:08.2]} 40.
Qf2 {[%clk 0:00:49.3]} 40... Qd3 {[%clk 0:00:07.2]} 41. Qf4 {[%clk 0:00:48.5]}
41... Qd4 {[%clk 0:00:05.8]} 42. h5 {[%clk 0:00:48.5]} 42... f5 {[%clk
0:00:05.3]} 43. h6+ {[%clk 0:00:47.6]} 43... Kf7 {[%clk 0:00:04.8]} 44. Qf1
{[%clk 0:00:42.8]} 44... Qxe4 {[%clk 0:00:04.5]} 45. Qc1 {[%clk 0:00:39.8]}
45... Qg4+ {[%clk 0:00:04.1]} 46. Kh2 {[%clk 0:00:39.9]} 46... Qe2+ {[%clk
0:00:03.9]} 47. Kh3 {[%clk 0:00:40.2]} 47... Qc4 {[%clk 0:00:03.6]} 48. Qe1
{[%clk 0:00:33.9]} 48... Ke6 {[%clk 0:00:03.8]} 49. Qf2 {[%clk 0:00:30.7]} 49...
a5 {[%clk 0:00:03.8]} 50. Qb6+ {[%clk 0:00:30.4]} 50... Nc6 {[%clk 0:00:04.1]}
51. Qb7 {[%clk 0:00:29.3]} 51... Qd5 {[%clk 0:00:04.1]} 52. Qxh7 {[%clk
0:00:28.9]} 52... Qh1# {[%clk 0:00:03.8]} 0-1